bitfinex-derivatives/quotes_BNBF0:USTF0_20250413
["timestamp","ask_amount","ask_price","bid_price","bid_amount"]
[1744547155046,0.29590558,588.27,587.3,3.669]
[1744547155245,0.29590558,588.26,587.3,3.669]
[1744547155545,0.29590558,588.25,587.3,3.669]
[1744547155746,0.29621055,588.26,587.3,3.669]
[1744547155940,0.29590558,588.25,587.3,3.669]
[1744547156144,0.34000306,588.23,587.3,3.669]
[1744547156341,0.29590558,588.22,587.3,3.669]
[1744547156643,0.3400204,588.2,587.3,3.669]
[1744547156847,0.29590558,588.19,587.3,3.669]
[1744547157047,0.34003774,588.17,587.3,3.669]
[1744547157249,0.29590558,588.16,587.3,3.669]
[1744547157448,0.3400493,588.15,587.3,3.669]
[1744547157649,0.63591639,588.15,587.3,3.669]
[1744547157849,0.29586709,588.14,587.3,3.669]
[1744547158144,0.34006087,588.13,587.3,3.669]
[1744547158350,0.29586709,588.12,587.3,3.669]
[1744547158545,0.34007243,588.11,587.3,3.669]
[1744547158747,0.29586709,588.1,587.3,3.669]
[1744547158948,0.340084,588.09,587.3,3.669]
[1744547159145,0.29585908,588.08,587.3,3.669]
[1744547159349,0.34009556,588.07,587.3,3.669]
[1744547159547,0.29585908,588.06,587.3,3.669]
[1744547159750,0.34010713,588.05,587.3,3.669]
[1744547160047,0.29585908,588.04,587.3,3.669]
[1744547160245,0.3401187,588.03,587.3,3.669]
[1744547160449,0.29585908,588.02,587.3,3.669]
[1744547160649,0.34012448,588.02,587.3,3.669]
[1744547160851,0.29585449,588.01,587.3,3.669]
[1744547161954,0.29585746,588.0,587.3,3.669]
[1744547162150,0.29585746,588.01,587.3,3.669]
[1744547164158,0.63598772,588.01,587.3,3.669]
[1744547164456,0.63599351,588.0,587.3,3.669]
[1744547164657,0.29585746,587.99,587.3,3.669]
[1744547165057,0.63641343,588.0,587.3,3.669]
[1744547165353,0.29580108,587.99,587.3,3.669]
[1744547166256,0.34014762,587.98,587.3,3.669]
[1744547166456,0.29580108,587.97,587.3,3.669]
[1744547166958,0.34015919,587.96,587.3,3.669]
[1744547167155,0.29580108,587.95,587.3,3.669]
[1744547167354,0.34017076,587.94,587.3,3.669]
[1744547167558,0.29580108,587.93,587.3,3.669]
[1744547168058,0.34018233,587.92,587.3,3.669]
[1744547168257,0.29580108,587.91,587.3,3.669]
[1744547171354,0.34018233,587.92,587.3,3.669]
[1744547171558,0.29582299,587.91,587.3,3.669]
[1744547171860,0.34019391,587.9,587.3,3.669]
[1744547172057,0.29582299,587.89,587.3,3.669]
[1744547177863,0.34019391,587.9,587.3,3.669]
[1744547178061,0.29587809,587.89,587.3,3.669]
[1744547178467,0.34020548,587.88,587.3,3.669]
[1744547178666,0.29587809,587.87,587.3,3.669]
[1744547178864,0.34021705,587.86,587.3,3.669]
[1744547179069,0.29587809,587.85,587.3,3.669]
[1744547179269,0.63610093,587.85,587.3,3.669]
[1744547179471,0.34022284,587.85,587.3,3.669]
[1744547179668,0.29596627,587.84,587.3,3.669]
[1744547181074,0.34022284,587.85,587.3,3.669]
[1744547181274,0.29597828,587.84,587.3,3.669]
[1744547182880,0.29591489,587.83,587.3,3.669]
[1744547183076,0.29591489,587.84,587.3,3.669]
[1744547183280,0.29591489,587.83,587.3,3.669]
[1744547183482,0.29591489,587.84,587.3,3.669]
[1744547183680,0.29591489,587.83,587.3,3.669]
[1744547183876,0.29591489,587.84,587.3,3.669]
[1744547184176,0.29591489,587.83,587.3,3.669]
[1744547184381,0.29591489,587.82,587.3,3.669]
[1744547184677,0.29591489,587.81,587.3,3.669]
[1744547184880,0.29591489,587.84,587.3,3.669]
[1744547185082,0.29591489,587.83,587.3,3.669]
[1744547185276,0.29591489,587.84,587.3,3.669]
[1744547185877,0.34022284,587.85,587.3,3.669]
[1744547186079,0.29583042,587.84,587.3,3.669]
[1744547189079,0.34022284,587.85,587.3,3.669]
[1744547189278,0.29574896,587.84,587.3,3.669]
[1744547192386,0.34023442,587.83,587.3,3.669]
[1744547192681,0.29574896,587.82,587.3,3.669]
[1744547192880,0.34024599,587.81,587.3,3.669]
[1744547193086,0.29574896,587.8,587.3,3.669]
[1744547193287,0.34025757,587.79,587.3,3.669]
[1744547193586,0.29574896,587.78,587.3,3.669]
[1744547193785,0.34026915,587.77,587.3,3.669]
[1744547194388,0.29570458,587.76,587.3,3.669]
[1744547194587,0.34028073,587.75,587.3,3.669]
[1744547194782,0.29570458,587.74,587.3,3.669]
[1744547195390,0.34028073,587.75,587.3,3.669]
[1744547195590,0.29569292,587.74,587.3,3.669]
[1744547196991,0.34028073,587.75,587.3,3.669]
[1744547197188,0.29568978,587.73,587.3,3.669]
[1744547197385,0.29568978,587.72,587.3,3.669]
[1744547197685,0.29568978,587.71,586.09,1.0777044]
[1744547197890,0.29568978,587.74,586.1,0.31304985]
[1744547198091,0.29568978,587.73,586.1,0.31304985]
[1744547198293,0.29568978,587.74,586.12,0.34122705]
[1744547198492,0.29568978,587.74,586.13,0.31304985]
[1744547198695,0.29569878,587.73,586.14,0.31305049]
[1744547198892,0.29569878,587.72,586.14,0.31305049]
[1744547199188,0.29569878,587.71,586.14,0.31305049]
[1744547199395,0.29569878,587.7,586.14,0.31305049]
[1744547199589,0.29569878,587.74,586.13,0.31305049]
[1744547199991,0.29569878,587.74,586.14,0.644]
[1744547200190,0.29569878,587.74,586.15,0.31305049]
[1744547200594,0.29651088,587.73,586.15,1.65105049]
[1744547200790,0.29569878,587.72,586.16,0.31305049]
[1744547201093,0.29569878,587.72,586.16,0.83405049]
[1744547201294,0.29569878,587.72,586.17,0.31305049]
[1744547201695,0.29569878,587.72,586.19,0.3411863]
[1744547201889,0.34030389,587.71,586.2,0.31305049]
[1744547202091,0.29569878,587.7,586.22,0.34116884]
[1744547202293,0.29569878,587.7,586.23,0.31305049]
[1744547203290,0.34030389,587.71,586.22,0.34116884]
[1744547203493,0.29569021,587.7,586.23,0.31306237]
[1744547203693,0.29569021,587.7,586.25,0.34115138]
[1744547204194,0.63599989,587.7,586.26,0.31306237]
[1744547204395,0.63599989,587.7,586.28,0.34113392]
[1744547204596,0.29569021,587.69,586.29,0.31306237]
[1744547204798,0.29569021,587.69,586.3,0.34112229]
[1744547205097,0.29569332,587.68,586.31,0.31306023]
[1744547205294,0.29569332,587.67,586.32,0.34111065]
[1744547205491,0.29569332,587.69,586.33,0.31306023]
[1744547205694,0.29569332,587.69,586.34,0.34109902]
[1744547205896,0.29569332,587.69,586.35,0.31306023]
[1744547206097,0.29569332,587.69,586.36,0.34108738]
[1744547206296,0.29569332,587.69,586.37,0.31306023]
[1744547206496,0.29569332,587.69,586.38,0.34107575]
[1744547206691,0.29569332,587.69,586.39,0.31306023]
[1744547206897,0.29569332,587.69,586.4,0.34106412]
[1744547207196,0.29569332,587.69,586.41,0.31306023]
[1744547207396,0.29569332,587.69,586.42,0.34105248]
[1744547207696,0.29569332,587.69,586.43,0.31306023]
[1744547207893,0.29569332,587.69,586.44,0.34104085]
[1744547208100,0.34030968,587.7,586.44,0.34104085]
[1744547208397,0.29568801,587.69,586.45,1.1440664]
[1744547208591,0.29568801,587.69,586.46,0.65409562]
[1744547208795,0.29568801,587.69,586.45,0.831]
[1744547208796,0.29568801,587.69,586.47,0.65408981]
[1744547209095,0.29568801,587.69,586.48,0.3130664]
[1744547210198,0.34030968,587.7,586.47,0.34102341]
[1744547210600,0.29566186,587.68,586.49,0.31307761]
[1744547210794,0.29566186,587.67,586.5,0.31307761]
[1744547210994,0.29566186,587.67,586.47,0.34102341]
[1744547210995,0.29566186,587.66,586.51,0.31307761]
[1744547211198,0.29566186,587.69,586.48,0.31307761]
[1744547211395,0.29566186,587.65,586.52,0.31307761]
[1744547211595,0.34030968,587.7,586.47,0.34102341]
[1744547211798,0.2956717,587.69,586.48,0.3130741]
[1744547215507,0.2956717,587.69,586.49,0.34101178]
[1744547215702,0.2956717,587.69,586.5,0.3130741]
[1744547216203,0.2956717,587.69,586.49,0.34101178]
[1744547216404,0.29572839,587.68,586.5,0.31306785]
[1744547216597,0.34030968,587.7,586.5,0.31306785]
[1744547216598,0.29572839,587.69,586.5,0.31306785]
[1744547217505,0.29572839,587.69,586.51,0.572]
[1744547217799,0.34030968,587.7,586.51,0.572]
[1744547218005,0.2957611,587.69,586.52,0.313053]
[1744547218804,0.2957611,587.69,586.53,0.34098852]
[1744547219004,0.2957611,587.69,586.54,0.313053]
[1744547219201,0.2957611,587.69,586.55,0.34097689]
[1744547219508,0.2957611,587.69,586.56,0.313053]
[1744547219907,0.2957611,587.69,586.57,0.34096527]
[1744547220205,0.2957611,587.69,586.58,0.313053]
[1744547220401,0.2957611,587.69,586.59,0.605]
[1744547220608,0.2957611,587.69,586.6,0.313053]
[1744547220800,0.34030968,587.7,586.59,0.94595364]
[1744547221004,0.29587166,587.69,586.6,0.3129894]
[1744547221204,0.29587166,587.69,586.61,0.34094202]
[1744547221402,0.29587166,587.69,586.62,0.3129894]
[1744547221603,0.29587166,587.69,586.63,0.34093039]
[1744547221802,0.29587166,587.69,586.64,0.3129894]
[1744547222005,0.34030968,587.7,586.65,0.34091877]
[1744547222208,0.29581408,587.69,586.66,0.31300113]
[1744547222907,0.29581408,587.69,586.66,0.65391409]
[1744547223104,0.29581408,587.69,586.67,0.31300113]
[1744547223510,0.34030968,587.7,586.66,0.34091296]
[1744547223705,0.34030968,587.7,586.67,0.31295485]
[1744547223911,0.34030968,587.7,586.68,0.34090134]
[1744547224211,0.34030968,587.7,586.69,0.31295485]
[1744547224909,0.34030968,587.7,586.68,0.34090134]
[1744547225511,0.34030968,587.7,586.69,0.31295392]
[1744547225713,0.34030968,587.7,586.7,0.34088972]
[1744547227009,0.34030968,587.7,586.71,0.624]
[1744547227410,0.34030968,587.7,586.71,0.96488391]
[1744547228209,0.34030968,587.7,586.72,0.3408781]
[1744547229209,0.34030968,587.7,586.73,0.31295545]
[1744547229516,0.2958551,587.69,586.73,0.65382774]
[1744547229706,0.2958551,587.69,586.74,0.31295545]
[1744547231518,0.2958551,587.69,586.75,0.656]
[1744547231719,0.2958551,587.69,586.76,0.31295545]
[1744547233217,0.29580811,587.68,586.77,1.00695655]
[1744547233418,0.29580811,587.67,586.78,0.31295655]
[1744547233720,0.29580811,587.66,586.78,0.31295655]
[1744547234019,0.29580811,587.65,586.78,0.89695655]
[1744547234215,0.29580811,587.69,586.79,0.31295655]
[1744547234414,0.34030968,587.7,586.79,0.31295655]
[1744547234415,0.29580811,587.68,586.79,0.31295655]
[1744547234618,0.34030968,587.7,586.78,0.584]
[1744547234919,0.34030968,587.7,586.79,0.31295264]
[1744547237820,0.34030968,587.7,586.78,0.584]
[1744547238021,0.34030968,587.7,586.79,0.31294192]
[1744547238521,0.29581481,587.69,586.79,0.31294192]
[1744547239220,0.34030968,587.7,586.79,0.31294192]
[1744547239522,0.34030968,587.7,586.8,0.31295259]
[1744547239714,0.34030968,587.7,586.79,0.31295259]
[1744547241123,0.34030968,587.7,586.8,0.31294926]
[1744547241321,0.34030968,587.7,586.79,0.31294926]
[1744547241522,0.34030968,587.7,586.8,0.31294926]
[1744547241822,0.34030968,587.7,586.81,0.31294926]
[1744547242022,0.34030968,587.7,586.79,0.31294926]
[1744547242224,0.34030968,587.7,586.8,0.31294926]
[1744547242424,0.34030968,587.7,586.79,0.31294926]
[1744547244225,0.34030968,587.7,586.78,0.584]
[1744547244526,0.29577218,587.69,586.79,0.31294914]
[1744547246527,0.29577218,587.69,586.79,0.95794914]
[1744547246725,0.29577218,587.69,586.8,0.31294914]
[1744547248433,0.34030968,587.7,586.8,0.31294914]
[1744547248632,0.34030968,587.7,586.8,1.04994914]
[1744547248834,0.29576996,587.69,586.81,0.31294914]
[1744547249133,0.34030968,587.7,586.8,0.737]
[1744547249329,0.29577451,587.69,586.81,0.31295554]
[1744547252336,0.34030968,587.7,586.8,0.737]
[1744547252635,0.29577958,587.69,586.81,0.31295245]
[1744547253636,0.34030968,587.7,586.81,0.31295245]
[1744547253938,0.29578405,587.69,586.81,0.31295245]
[1744547254238,0.34030968,587.7,586.81,0.31295245]
[1744547254938,0.34030968,587.7,586.81,1.00895245]
[1744547255139,0.34030968,587.7,586.82,0.31295245]
[1744547255538,0.34030968,587.7,586.81,0.696]
[1744547255731,0.29579803,587.69,586.82,0.3129454]
[1744547256632,1.29324528,588.06,586.81,0.696]
[1744547256933,0.63591588,588.05,586.81,0.696]
[1744547257134,0.29580875,588.04,586.81,0.696]
[1744547257337,0.63593887,588.03,586.81,0.696]
[1744547257532,0.29582017,588.02,586.82,0.34082001]
[1744547258441,0.3401187,588.03,586.82,0.34082001]
[1744547259239,0.3401187,588.03,586.83,0.797]
[1744547259440,0.3401187,588.03,586.84,0.34080839]
[1744547266344,0.3401187,588.03,586.85,0.758]
[1744547266545,0.3401187,588.03,586.86,0.34079678]
[1744547268442,0.29583008,588.02,586.87,0.31287582]
[1744547268745,0.3401187,588.03,586.88,0.34078516]
[1744547268946,0.29582943,588.02,586.89,0.31287621]
[1744547270346,0.3401187,588.03,586.88,0.34078516]
[1744547270841,0.29581374,588.02,586.89,0.31287608]
[1744547272550,0.29581374,588.02,586.9,0.568]
[1744547272750,0.29581374,588.02,586.91,0.31287608]
[1744547273650,0.29581374,588.02,586.91,0.97987608]
[1744547273848,0.29581374,588.02,586.92,0.31287608]
[1744547274149,0.29581374,588.02,586.93,0.34075613]
[1744547274453,0.29581374,588.02,586.94,0.31287608]
[1744547275255,0.3401187,588.03,586.93,0.34075613]
[1744547275553,0.29587079,588.02,586.94,0.31282636]
[1744547276854,0.3401187,588.03,586.93,0.34075613]
[1744547277054,0.29582258,588.02,586.94,0.31284706]
[1744547278554,0.3401187,588.03,586.93,0.34075613]
[1744547278757,0.2957467,588.02,586.94,0.31285226]
[1744547279457,0.2957467,588.02,586.94,0.65360259]
[1744547279658,0.2957467,588.02,586.95,0.31285226]
[1744547282063,0.2957467,588.02,586.96,0.557]
[1744547282361,0.2957467,588.02,586.97,0.31285226]
[1744547285165,0.2957467,588.02,586.96,0.557]
[1744547285166,0.29575294,588.01,586.98,0.31283437]
[1744547285362,0.29575294,588.02,586.97,0.31283437]
[1744547289366,0.3401187,588.03,586.96,0.557]
[1744547289570,0.29577516,588.02,586.97,0.31284733]
[1744547290868,0.3401187,588.03,586.96,0.85325342]
[1744547291272,0.3401187,588.03,586.97,0.463]
[1744547291473,0.29578825,588.02,586.97,0.463]
[1744547291775,0.3401187,588.03,586.97,0.463]
[1744547294375,0.3401187,588.03,586.98,0.709]
[1744547298478,0.29577568,588.02,586.98,0.709]
[1744547299574,0.63590016,588.02,586.98,0.709]
[1744547299774,0.29577568,588.01,586.98,0.709]
[1744547302283,0.34012448,588.02,586.98,0.709]
[1744547302478,0.29574838,588.0,586.98,0.709]
[1744547302684,0.29574838,587.99,586.99,0.577]
[1744547303081,0.29574838,587.98,586.99,0.577]
[1744547303280,0.29574838,588.01,587.0,0.449]
[1744547305485,0.34012448,588.02,587.0,0.449]
[1744547305682,0.29574528,588.0,587.0,0.449]
[1744547305886,0.29574528,587.99,587.0,0.449]
[1744547306082,0.29574528,588.01,587.0,0.449]
[1744547307082,0.34012448,588.02,587.0,0.449]
[1744547307287,0.29574624,588.01,587.0,0.449]
[1744547307489,0.34013605,588.0,587.0,0.449]
[1744547307883,0.29574624,587.99,587.0,0.449]
[1744547308086,0.34014762,587.98,587.0,0.449]
[1744547308287,0.29574624,587.97,587.0,0.449]
[1744547308488,0.63589964,587.97,587.0,0.449]
[1744547308690,0.29574624,587.96,587.0,0.449]
[1744547308889,0.3401534,587.97,587.0,0.449]
[1744547308890,0.29567669,587.95,587.0,0.449]
[1744547309084,0.34017076,587.94,587.0,0.449]
[1744547309282,0.29567669,587.93,587.0,0.449]
[1744547309485,0.34018233,587.92,587.0,0.449]
[1744547309687,0.29567669,587.91,587.0,0.449]
[1744547309988,0.34019391,587.9,587.0,0.449]
[1744547310183,0.29567669,587.89,587.0,0.449]
[1744547310590,0.34020548,587.88,587.0,0.449]
[1744547310788,0.29567669,587.87,587.0,0.449]
[1744547311989,0.34020548,587.88,587.0,0.449]
[1744547312190,0.29571383,587.87,587.0,0.449]
[1744547315193,0.34020548,587.88,587.0,0.449]
[1744547315400,0.29571843,587.87,587.0,0.449]
[1744547315894,0.34021705,587.86,587.0,0.449]
[1744547316189,0.29571843,587.85,587.0,0.449]
[1744547316494,0.34022863,587.84,587.0,0.449]
[1744547316794,0.29571843,587.83,587.01,0.565]
[1744547316991,0.3402402,587.82,587.01,0.565]
[1744547317192,0.29571843,587.81,587.01,0.565]
[1744547319396,0.29571843,587.81,587.02,0.51]
[1744547320093,0.3402402,587.82,587.02,0.51]
[1744547320392,0.29574215,587.81,587.02,0.51]
[1744547324900,0.3402402,587.82,587.02,0.51]
[1744547325100,0.29580206,587.81,587.02,0.51]
[1744547328504,0.29580206,587.81,587.02,1.152]
[1744547329405,0.29580206,587.81,587.02,1.93]
[1744547331508,0.3402402,587.82,587.02,1.93]
[1744547331708,0.2958255,587.81,587.02,1.93]
[1744547335507,0.2958255,587.81,587.02,2.52]
[1744547338009,0.3402402,587.82,587.02,2.52]
[1744547338213,0.29583756,587.81,587.02,2.52]
[1744547338414,0.29583756,587.81,587.02,3.095]
[1744547339812,0.3402402,587.82,587.02,3.095]
[1744547340017,0.29583724,587.81,587.02,3.095]
[1744547340718,0.29583724,587.81,587.02,3.684]
[1744547345514,0.3402402,587.82,587.02,3.684]
[1744547345718,0.29584185,587.81,587.02,3.684]
[1744547347216,0.3402402,587.82,587.02,3.684]
[1744547347420,0.29583879,587.81,587.02,3.684]
[1744547350625,0.3402402,587.82,587.02,3.684]
[1744547351022,0.29583335,587.81,587.02,3.684]
[1744547358522,0.3402402,587.82,587.02,3.684]
[1744547358721,0.29580296,587.81,587.02,3.684]
[1744547361931,0.29579014,587.8,587.02,3.684]
[1744547362225,0.29579014,587.79,587.02,3.684]
[1744547362430,0.29579014,587.81,587.02,3.684]
[1744547362625,0.29579014,587.78,587.02,3.684]
[1744547362826,0.29579014,587.77,587.02,3.684]
[1744547363026,0.29579014,587.81,587.02,3.684]
[1744547366631,0.3402402,587.82,587.02,3.684]
[1744547366835,0.29583957,587.81,587.02,3.684]
[1744547369935,0.3402402,587.82,587.02,3.684]
[1744547370137,0.29582274,587.81,587.02,3.684]
[1744547373141,0.3402402,587.82,587.02,3.684]
[1744547373343,0.29586107,587.81,587.02,3.684]
[1744547374745,0.3402402,587.82,587.02,3.684]
[1744547375045,0.29586059,587.81,587.02,3.684]
[1744547379649,0.3402402,587.82,587.02,3.684]
[1744547379847,0.29587728,587.8,587.02,3.684]
[1744547380043,0.29587728,587.79,587.02,3.684]
[1744547380250,0.3402402,587.82,587.02,3.684]
[1744547380550,0.29587989,587.81,587.02,3.684]
[1744547389253,0.3402402,587.82,587.02,3.684]
[1744547390154,0.29600404,587.81,587.02,3.684]
[1744547391050,0.3402402,587.82,587.02,3.684]
[1744547396758,0.29592717,587.81,587.02,3.684]
[1744547396959,0.3402402,587.82,587.02,3.684]
[1744547397158,0.29592919,587.81,587.02,3.684]
[1744547400162,0.3402402,587.82,587.02,3.684]
[1744547400358,0.29593409,587.81,587.02,3.684]
[1744547404671,0.29588486,587.8,587.02,3.684]
[1744547404876,0.29588486,587.79,587.02,3.684]
[1744547405171,0.29588486,587.78,587.02,3.684]
[1744547405371,0.29588486,587.81,587.02,3.684]
[1744547407768,0.3402402,587.82,587.02,3.684]
[1744547407974,0.2958995,587.81,587.02,3.684]
[1744547412477,0.2958995,587.89,587.02,3.684]
[1744547412677,1.29324528,588.01,587.02,3.684]
[1744547412972,0.29593743,588.0,587.02,3.684]
[1744547413278,0.29593743,587.99,587.02,3.684]
[1744547413574,0.29593743,587.98,587.02,3.684]
[1744547413776,0.29632153,587.98,587.02,3.684]
[1744547413975,0.29593743,587.97,587.02,3.684]
[1744547414873,0.29593743,587.96,587.02,3.684]
[1744547415071,0.29593743,587.97,587.02,3.684]
[1744547415271,0.29593743,587.96,587.02,3.684]
[1744547415471,0.29593743,587.97,587.02,3.684]
[1744547415672,0.29593743,587.96,587.02,3.684]
[1744547415874,0.29593743,588.01,587.02,3.684]
[1744547416074,0.29593743,588.0,587.02,3.684]
[1744547416273,0.29593743,588.01,587.02,3.684]
[1744547416477,0.29593743,588.0,587.02,3.684]
[1744547416679,1.29324528,588.0,587.02,3.684]
[1744547416874,0.29593743,587.99,587.02,3.684]
[1744547417582,1.58955293,588.0,587.02,3.684]
[1744547417779,0.29595185,587.99,587.02,3.684]
[1744547418678,0.29631017,587.98,587.02,3.684]
[1744547418879,0.29595185,587.97,587.02,3.684]
[1744547421678,0.2963127,587.96,587.02,3.684]
[1744547421878,0.29595185,587.95,587.02,3.684]
[1744547424681,0.29595185,588.21,587.02,3.684]
[1744547424985,0.29595185,588.2,587.02,3.684]
[1744547425182,0.29595185,588.19,587.02,3.684]
[1744547425384,0.29595185,588.18,587.02,3.684]
[1744547425685,0.29595185,588.17,587.02,3.684]
[1744547425889,1.58917746,588.16,587.02,3.684]
[1744547426087,0.29593218,588.15,587.02,3.684]
[1744547427182,0.29593218,588.14,587.02,3.684]
[1744547427387,1.29324528,588.16,587.02,3.684]
[1744547427587,0.29593861,588.15,587.02,3.684]
[1744547428786,0.5922286,588.14,587.02,3.684]
[1744547428986,0.29628999,588.14,587.02,3.684]
[1744547429186,0.29592242,588.13,587.02,3.684]
[1744547429386,0.29592242,588.12,587.02,3.684]
[1744547429588,1.29324528,587.94,587.02,3.684]
[1744547429883,0.29592242,587.93,587.02,3.684]
[1744547430689,1.29324528,587.94,587.02,3.684]
[1744547430882,0.29592219,587.93,587.02,3.684]
[1744547431694,0.59223993,587.93,587.02,3.684]
[1744547431890,1.29324528,587.9,587.02,3.684]
[1744547432090,0.29592219,587.89,587.02,3.684]
[1744547432391,0.29593299,587.88,587.02,3.684]
[1744547432584,0.29593299,587.87,587.02,3.684]
[1744547432788,0.29593299,587.89,587.02,3.684]
[1744547433086,0.29593299,587.88,587.02,3.684]
[1744547433284,0.29593299,587.89,587.02,3.684]
[1744547433991,0.29593299,587.88,587.02,3.684]
[1744547434193,0.29593299,587.92,587.02,3.684]
[1744547434490,0.29593299,587.91,587.02,3.684]
[1744547434695,0.29593299,587.92,587.02,3.684]
[1744547434896,0.29593299,587.91,587.02,3.684]
[1744547435095,0.29593299,587.92,587.02,3.684]
[1744547435393,0.29593299,587.91,587.02,3.684]
[1744547435589,0.29593512,587.9,587.02,3.684]
[1744547435893,0.29593512,587.89,587.02,3.684]
[1744547436090,0.29593512,587.88,587.02,3.684]
[1744547436289,0.29593512,587.92,587.02,3.684]
[1744547436491,0.29593512,587.91,587.02,3.684]
[1744547436690,0.29593512,587.9,587.02,3.684]
[1744547436895,0.29593512,588.08,587.02,3.684]
[1744547437089,0.29593512,588.07,587.02,3.684]
[1744547437293,0.29593512,588.08,587.02,3.684]
[1744547437792,0.29629882,588.07,587.02,3.684]
[1744547437991,0.29593512,588.06,587.02,3.684]
[1744547438795,0.29629882,588.07,587.02,3.684]
[1744547438995,0.29591944,588.06,587.02,3.684]
[1744547439695,0.29591944,588.12,587.02,3.684]
[1744547440694,0.29630639,588.11,587.02,3.684]
[1744547440899,0.29591944,588.1,587.02,3.684]
[1744547442702,1.58916472,588.12,587.02,3.684]
[1744547442903,0.29591944,588.11,587.02,3.684]
[1744547443902,0.29630765,588.1,587.02,3.684]
[1744547444201,0.29591944,588.09,587.02,3.684]
[1744547444401,0.29591944,588.08,587.02,3.684]
[1744547444597,0.29591944,588.07,587.02,3.684]
[1744547444800,0.29591944,588.06,587.02,3.684]
[1744547444997,0.29591944,588.05,587.02,3.684]
[1744547445201,0.29591944,588.04,587.02,3.684]
[1744547445402,1.29324528,588.06,587.02,3.684]
[1744547445600,0.29592308,588.05,587.02,3.684]
[1744547445803,0.29592308,588.04,587.02,3.684]
[1744547445999,0.29592308,588.05,587.02,3.684]
[1744547446201,0.29592308,588.04,587.02,3.684]
[1744547446407,0.29592308,588.05,587.02,3.684]
[1744547446607,0.29592308,588.04,587.02,3.684]
[1744547446806,0.29592308,588.05,587.02,3.684]
[1744547447005,1.29324528,588.06,587.02,3.684]
[1744547447204,1.29324528,587.96,587.02,3.684]
[1744547447406,0.29592515,587.95,587.02,3.684]
[1744547448705,1.29324528,587.96,587.02,3.684]
[1744547448908,0.29591527,587.95,587.02,3.684]
[1744547449109,1.29324528,587.94,587.02,3.684]
[1744547449309,0.29591527,587.93,587.02,3.684]
[1744547449711,0.29632531,587.92,587.02,3.684]
[1744547449906,0.29591527,587.91,587.02,3.684]
[1744547452012,0.29593351,587.9,587.02,3.684]
[1744547452311,0.29593351,587.89,587.02,3.684]
[1744547452611,0.29593351,587.88,587.02,3.684]
[1744547452806,0.29593351,587.87,587.02,3.684]
[1744547453011,0.29593351,587.91,587.02,3.684]
[1744547453211,0.29593351,587.9,587.02,3.684]
[1744547453511,0.29593351,587.91,587.02,3.684]
[1744547453712,0.29593351,587.89,587.02,3.684]
[1744547453912,0.29593914,587.88,587.02,3.684]
[1744547454113,0.29593914,587.91,587.02,3.684]
[1744547454313,0.29593914,587.9,587.02,3.684]
[1744547454509,0.29593914,587.91,587.02,3.684]
[1744547454713,0.29593914,587.9,587.02,3.684]
[1744547454913,0.29593914,587.89,587.02,3.684]
[1744547455214,0.29593914,587.91,587.02,3.684]
[1744547456819,0.29632531,587.92,587.02,3.684]
[1744547457014,0.29595027,587.91,587.02,3.684]
[1744547457621,0.29595027,587.98,587.02,3.684]
[1744547457822,0.2963127,587.96,587.02,3.684]
[1744547458120,0.29595027,587.95,587.02,3.684]
[1744547460724,0.29595027,588.23,587.02,3.684]
[1744547460925,0.29595027,587.94,587.02,3.684]
[1744547461224,0.34001462,588.21,587.02,3.684]
[1744547461420,0.29597056,588.2,587.02,3.684]
[1744547461725,0.34003196,588.18,587.02,3.684]
[1744547461926,0.29597056,588.17,587.02,3.684]
[1744547464124,0.3400493,588.15,587.02,3.684]
[1744547464325,0.29597056,588.14,587.02,3.684]
[1744547464525,0.29593354,588.13,587.02,3.684]
[1744547464725,0.29593354,588.14,587.02,3.684]
[1744547464927,0.59224245,588.13,587.02,3.684]
[1744547465127,0.29593354,588.12,587.02,3.684]
[1744547466630,0.29593354,588.14,587.02,3.684]
[1744547466832,0.29593354,588.13,587.02,3.684]
[1744547467030,0.29593354,588.14,587.02,3.684]
[1744547467326,0.29593354,588.13,587.02,3.684]